[Event "*** Titled Tuesday Blitz"]
[Site "Chess.com"]
[Date "2020.04.07"]
[Round "2"]
[White "Artem_Sadovsky"]
[Black "Eltaj_Safarli"]
[Result "1-0"]
[WhiteElo "2638"]
[BlackElo "3049"]
[TimeControl "180+1"]
[EndTime "13:20:54 PDT"]
[Termination "Artem_Sadovsky won on time"]

1. Nf3 {[%clk 0:03:00.9]} 1... Nf6 {[%clk 0:03:00]} 2. g3 {[%clk 0:03:01.5]}
2... g6 {[%clk 0:03:00.5]} 3. Bg2 {[%clk 0:03:02.2]} 3... Bg7 {[%clk 0:03:01.4]}
4. O-O {[%clk 0:03:03]} 4... O-O {[%clk 0:03:02.3]} 5. c4 {[%clk 0:03:03.7]}
5... c6 {[%clk 0:03:01.4]} 6. b3 {[%clk 0:03:03.9]} 6... d5 {[%clk 0:03:02.3]}
7. Bb2 {[%clk 0:03:04.3]} 7... Bg4 {[%clk 0:03:01.2]} 8. d3 {[%clk 0:03:04.6]}
8... Nbd7 {[%clk 0:02:58.5]} 9. Nbd2 {[%clk 0:03:05]} 9... e6 {[%clk 0:02:55.7]}
10. Qc1 {[%clk 0:03:05.4]} 10... Re8 {[%clk 0:02:54.1]} 11. h3 {[%clk
0:03:04.4]} 11... Bxf3 {[%clk 0:02:54.4]} 12. Bxf3 {[%clk 0:03:05]} 12... a6
{[%clk 0:02:55.3]} 13. Bg2 {[%clk 0:03:00.5]} 13... Rc8 {[%clk 0:02:55.6]} 14.
d4 {[%clk 0:02:53.2]} 14... h5 {[%clk 0:02:53.9]} 15. e4 {[%clk 0:02:48.4]}
15... dxe4 {[%clk 0:02:54]} 16. Nxe4 {[%clk 0:02:49.3]} 16... Nxe4 {[%clk
0:02:54.8]} 17. Bxe4 {[%clk 0:02:50.2]} 17... Qb6 {[%clk 0:02:49.8]} 18. Rd1
{[%clk 0:02:46.6]} 18... Rcd8 {[%clk 0:02:47.1]} 19. Qe3 {[%clk 0:02:39.5]}
19... Nf6 {[%clk 0:02:39]} 20. Bg2 {[%clk 0:02:36.7]} 20... Rd7 {[%clk
0:02:30.2]} 21. Rd3 {[%clk 0:02:28]} 21... Red8 {[%clk 0:02:25.2]} 22. Rad1
{[%clk 0:02:28.5]} 22... Qa5 {[%clk 0:02:21.4]} 23. a3 {[%clk 0:02:27]} 23...
Kh7 {[%clk 0:02:21.1]} 24. b4 {[%clk 0:01:54.9]} 24... Qc7 {[%clk 0:02:15.6]}
25. Bf3 {[%clk 0:01:46.7]} 25... Bh6 {[%clk 0:02:07.6]} 26. Qe2 {[%clk
0:01:44.4]} 26... Bg7 {[%clk 0:02:04.4]} 27. Kg2 {[%clk 0:01:43.8]} 27... h4
{[%clk 0:02:02.7]} 28. d5 {[%clk 0:01:18.4]} 28... cxd5 {[%clk 0:01:52]} 29.
cxd5 {[%clk 0:01:19.3]} 29... exd5 {[%clk 0:01:48]} 30. Be5 {[%clk 0:01:14.2]}
30... Qc4 {[%clk 0:01:21.4]} 31. Rd4 {[%clk 0:01:12.8]} 31... Qxe2 {[%clk
0:01:12.5]} 32. Rxh4+ {[%clk 0:01:03.1]} 32... Nh5 {[%clk 0:01:05.5]} 33. Bxe2
{[%clk 0:01:04]} 33... Bxe5 {[%clk 0:01:05.4]} 34. Bxh5 {[%clk 0:01:04.7]} 34...
Bf6 {[%clk 0:00:58.1]} 35. Bg4+ {[%clk 0:01:04.9]} 35... Bxh4 {[%clk 0:00:57.2]}
36. Bxd7 {[%clk 0:01:05.5]} 36... Rxd7 {[%clk 0:00:58.1]} 37. gxh4 {[%clk
0:01:05.3]} 37... d4 {[%clk 0:00:53.6]} 38. Kf3 {[%clk 0:01:05.2]} 38... Kh6
{[%clk 0:00:54.1]} 39. Ke4 {[%clk 0:01:00.7]} 39... Kh5 {[%clk 0:00:52.9]} 40.
Rxd4 {[%clk 0:01:01.3]} 40... Rxd4+ {[%clk 0:00:48.1]} 41. Kxd4 {[%clk
0:01:02.2]} 41... Kxh4 {[%clk 0:00:48.9]} 42. Kc5 {[%clk 0:00:53.1]} 42... Kxh3
{[%clk 0:00:30.2]} 43. Kb6 {[%clk 0:00:53.6]} 43... g5 {[%clk 0:00:16.3]} 44.
Kxb7 {[%clk 0:00:54]} 44... g4 {[%clk 0:00:16.3]} 45. Kxa6 {[%clk 0:00:53.9]}
45... f5 {[%clk 0:00:16.7]} 46. b5 {[%clk 0:00:54.3]} 46... f4 {[%clk
0:00:16.9]} 47. b6 {[%clk 0:00:54.9]} 47... g3 {[%clk 0:00:17.2]} 48. fxg3
{[%clk 0:00:53.9]} 48... f3 {[%clk 0:00:09.1]} 49. b7 {[%clk 0:00:54.8]} 49...
f2 {[%clk 0:00:09.7]} 50. b8=Q {[%clk 0:00:55.7]} 50... f1=Q+ {[%clk 0:00:10.5]}
51. Qb5 {[%clk 0:00:56.1]} 51... Qf6+ {[%clk 0:00:08.5]} 52. Qb6 {[%clk
0:00:56.7]} 52... Qf1+ {[%clk 0:00:07.2]} 53. Ka5 {[%clk 0:00:55.8]} 53... Qe1+
{[%clk 0:00:06.9]} 54. Qb4 {[%clk 0:00:56.1]} 54... Qe5+ {[%clk 0:00:07.3]} 55.
Kb6 {[%clk 0:00:56.4]} 55... Qe6+ {[%clk 0:00:06.6]} 56. Kc7 {[%clk 0:00:56.9]}
56... Qf7+ {[%clk 0:00:06.4]} 57. Kd6 {[%clk 0:00:56.5]} 57... Qf6+ {[%clk
0:00:06]} 58. Kd7 {[%clk 0:00:57.1]} 58... Qf7+ {[%clk 0:00:05.3]} 59. Qe7
{[%clk 0:00:57.8]} 59... Qd5+ {[%clk 0:00:05.3]} 60. Qd6 {[%clk 0:00:58.4]}
60... Qf7+ {[%clk 0:00:04.4]} 61. Kd8 {[%clk 0:00:59]} 61... Qg8+ {[%clk
0:00:02.7]} 62. Kd7 {[%clk 0:00:58.9]} 62... Qf7+ {[%clk 0:00:02.1]} 63. Kc8
{[%clk 0:00:59.1]} 63... Qg8+ {[%clk 0:00:02.2]} 64. Kb7 {[%clk 0:00:56.8]}
64... Qb3+ {[%clk 0:00:02.2]} 65. Qb4 {[%clk 0:00:57.1]} 65... Qf7+ {[%clk
0:00:02.6]} 66. Kc6 {[%clk 0:00:57.1]} 66... Qe6+ {[%clk 0:00:03]} 67. Qd6
{[%clk 0:00:58]} 67... Qc4+ {[%clk 0:00:03.4]} 68. Kb6 {[%clk 0:00:58.4]} 68...
Qb3+ {[%clk 0:00:03.3]} 69. Ka5 {[%clk 0:00:58.8]} 69... Qc3+ {[%clk 0:00:03.1]}
70. Ka4 {[%clk 0:00:59.2]} 70... Qc4+ {[%clk 0:00:03.1]} 71. Ka5 {[%clk
0:00:57.2]} 71... Qc3+ {[%clk 0:00:03.2]} 72. Kb5 {[%clk 0:00:57.7]} 72... Qb3+
{[%clk 0:00:03.1]} 73. Kc6 {[%clk 0:00:58.2]} 73... Qc4+ {[%clk 0:00:03.1]} 74.
Kb7 {[%clk 0:00:50.3]} 74... Qf7+ {[%clk 0:00:03.4]} 75. Kc8 {[%clk 0:00:44.3]}
75... Qc4+ {[%clk 0:00:03.4]} 76. Kd8 {[%clk 0:00:42.1]} 76... Qg8+ {[%clk
0:00:03.5]} 77. Kc7 {[%clk 0:00:39.9]} 77... Qc4+ {[%clk 0:00:03.9]} 78. Qc6
{[%clk 0:00:40.8]} 78... Qd4 {[%clk 0:00:02.7]} 79. Qd7+ {[%clk 0:00:40.8]} 1-0

[Event "*** Titled Tuesday Blitz"]
[Site "Chess.com"]
[Date "2020.04.07"]
[Round "2"]
[White "AryanTari"]
[Black "Rud_Makarian"]
[Result "0-1"]
[WhiteElo "2880"]
[BlackElo "2598"]
[TimeControl "180+1"]
[EndTime "13:21:00 PDT"]
[Termination "Rud_Makarian won by resignation"]

1. e4 {[%clk 0:03:00.9]} 1... e5 {[%clk 0:02:58.4]} 2. Nf3 {[%clk 0:02:59.3]}
2... Nc6 {[%clk 0:02:58.7]} 3. Bb5 {[%clk 0:02:58.1]} 3... Nf6 {[%clk
0:02:57.7]} 4. d3 {[%clk 0:02:56.2]} 4... Bc5 {[%clk 0:02:57.9]} 5. Bxc6 {[%clk
0:02:55.7]} 5... dxc6 {[%clk 0:02:53.6]} 6. Nbd2 {[%clk 0:02:55.9]} 6... Be6
{[%clk 0:02:31.1]} 7. Nb3 {[%clk 0:02:54.7]} 7... Bb6 {[%clk 0:02:16.5]} 8. Ng5
{[%clk 0:02:49.1]} 8... Bg4 {[%clk 0:01:47.7]} 9. Qd2 {[%clk 0:02:47.9]} 9...
Nd7 {[%clk 0:01:45.8]} 10. h3 {[%clk 0:02:36.7]} 10... Bh5 {[%clk 0:01:41]} 11.
g4 {[%clk 0:02:30.2]} 11... Bg6 {[%clk 0:01:40.8]} 12. Nf3 {[%clk 0:02:28.6]}
12... Qe7 {[%clk 0:01:36.5]} 13. Qe2 {[%clk 0:02:27.5]} 13... O-O-O {[%clk
0:01:35.4]} 14. Be3 {[%clk 0:02:23.6]} 14... f6 {[%clk 0:01:32.2]} 15. O-O-O
{[%clk 0:02:22.7]} 15... Bf7 {[%clk 0:01:31.3]} 16. Kb1 {[%clk 0:02:13.2]} 16...
Kb8 {[%clk 0:01:23]} 17. h4 {[%clk 0:02:03.3]} 17... h6 {[%clk 0:00:59.8]} 18.
h5 {[%clk 0:02:03.4]} 18... Rhe8 {[%clk 0:00:45.7]} 19. Nh4 {[%clk 0:02:02.4]}
19... Be6 {[%clk 0:00:37.3]} 20. Nf5 {[%clk 0:01:59.1]} 20... Qf7 {[%clk
0:00:36.4]} 21. c4 {[%clk 0:01:59.1]} 21... Bxe3 {[%clk 0:00:28.9]} 22. fxe3
{[%clk 0:01:59.1]} 22... c5 {[%clk 0:00:29.1]} 23. Qc2 {[%clk 0:01:38.8]} 23...
b6 {[%clk 0:00:28.6]} 24. Nd2 {[%clk 0:01:38.4]} 24... Kb7 {[%clk 0:00:26.3]}
25. Nf3 {[%clk 0:01:33.7]} 25... Nb8 {[%clk 0:00:23.7]} 26. a3 {[%clk
0:01:29.9]} 26... Nc6 {[%clk 0:00:23.7]} 27. Qc3 {[%clk 0:01:27.7]} 27... a5
{[%clk 0:00:21.1]} 28. Ka1 {[%clk 0:01:12.2]} 28... Rd7 {[%clk 0:00:20.5]} 29.
Rd2 {[%clk 0:01:10.5]} 29... Red8 {[%clk 0:00:20.1]} 30. Rhd1 {[%clk 0:01:11.2]}
30... Qe8 {[%clk 0:00:14.8]} 31. Qc2 {[%clk 0:01:10]} 31... Qf7 {[%clk 0:00:12]}
32. Qa4 {[%clk 0:01:08.7]} 32... Qe8 {[%clk 0:00:10.2]} 33. Kb1 {[%clk
0:01:05.1]} 33... Bxf5 {[%clk 0:00:10]} 34. gxf5 {[%clk 0:00:54]} 34... Qxh5
{[%clk 0:00:10.1]} 35. Ne1 {[%clk 0:00:54.6]} 35... Qg5 {[%clk 0:00:09]} 36. Nc2
{[%clk 0:00:51.7]} 36... Qg4 {[%clk 0:00:07.8]} 37. Na1 {[%clk 0:00:36.6]} 37...
h5 {[%clk 0:00:07.5]} 38. Nb3 {[%clk 0:00:35.1]} 38... Rd6 {[%clk 0:00:06.6]}
39. Qb5 {[%clk 0:00:32.2]} 39... Ka7 {[%clk 0:00:06.4]} 40. Nc1 {[%clk
0:00:32.1]} 40... Qg3 {[%clk 0:00:05.7]} 41. Ka1 {[%clk 0:00:17.9]} 41... Qxe3
{[%clk 0:00:05.1]} 42. Ne2 {[%clk 0:00:18.3]} 42... Nd4 {[%clk 0:00:04.3]} 43.
Nxd4 {[%clk 0:00:18.6]} 43... Qxd4 {[%clk 0:00:02.1]} 44. Rg2 {[%clk 0:00:18.4]}
44... R8d7 {[%clk 0:00:02.1]} 45. Rg3 {[%clk 0:00:16.5]} 45... Kb7 {[%clk
0:00:03]} 46. Rdg1 {[%clk 0:00:16]} 46... Qf2 {[%clk 0:00:03.1]} 47. Rxg7 {[%clk
0:00:13.4]} 47... Rxg7 {[%clk 0:00:03.6]} 48. Rxg7 {[%clk 0:00:13.1]} 48... Qf1+
{[%clk 0:00:04.5]} 49. Ka2 {[%clk 0:00:13.1]} 49... Qxd3 {[%clk 0:00:05.4]} 50.
Qb3 {[%clk 0:00:08.8]} 50... Qxe4 {[%clk 0:00:05.1]} 51. Qc3 {[%clk 0:00:06.6]}
51... Qxf5 {[%clk 0:00:05]} 52. Qe3 {[%clk 0:00:06.5]} 52... Qd3 {[%clk
0:00:04.6]} 53. Qe1 {[%clk 0:00:03.2]} 53... Qxc4+ {[%clk 0:00:04.2]} 54. Ka1
{[%clk 0:00:04.1]} 54... Qb3 {[%clk 0:00:04.1]} 55. Qh1+ {[%clk 0:00:04.2]}
55... Ka6 {[%clk 0:00:03.3]} 56. Rg1 {[%clk 0:00:02.6]} 56... Ka7 {[%clk
0:00:02.6]} 57. Rc1 {[%clk 0:00:01.7]} 57... c4 {[%clk 0:00:03.1]} 58. Rb1
{[%clk 0:00:02.1]} 58... c3 {[%clk 0:00:02.5]} 59. Qc1 {[%clk 0:00:02.8]} 59...
cxb2+ {[%clk 0:00:02.7]} 60. Rxb2 {[%clk 0:00:03.7]} 60... Qxa3+ {[%clk
0:00:03]} 61. Kb1 {[%clk 0:00:03.7]} 61... Qc5 {[%clk 0:00:03.9]} 62. Rc2 {[%clk
0:00:03.2]} 62... Qb5+ {[%clk 0:00:03.8]} 63. Rb2 {[%clk 0:00:03.7]} 63... Qc5
{[%clk 0:00:03.9]} 64. Rc2 {[%clk 0:00:03.8]} 64... Qb5+ {[%clk 0:00:04]} 65.
Rb2 {[%clk 0:00:04.4]} 65... Qd3+ {[%clk 0:00:04.9]} 66. Ka1 {[%clk 0:00:05]}
66... c5 {[%clk 0:00:04.8]} 67. Rc2 {[%clk 0:00:04.6]} 67... Qd1 {[%clk
0:00:05]} 68. Kb2 {[%clk 0:00:03.7]} 68... Qxc1+ {[%clk 0:00:05.3]} 69. Rxc1
{[%clk 0:00:04.6]} 69... Kb7 {[%clk 0:00:05.6]} 70. Rg1 {[%clk 0:00:05.5]} 70...
Kc6 {[%clk 0:00:06.5]} 71. Rg8 {[%clk 0:00:06]} 71... b5 {[%clk 0:00:07.1]} 72.
Rc8+ {[%clk 0:00:06.7]} 72... Kd5 {[%clk 0:00:07.5]} 73. Rh8 {[%clk 0:00:05.1]}
73... Kc4 {[%clk 0:00:08.4]} 74. Rxh5 {[%clk 0:00:05.5]} 74... b4 {[%clk
0:00:08.3]} 75. Rh4+ {[%clk 0:00:06.4]} 75... Kb5 {[%clk 0:00:09.2]} 76. Rh8
{[%clk 0:00:07.3]} 76... a4 {[%clk 0:00:09.5]} 77. Rb8+ {[%clk 0:00:08.2]} 77...
Kc4 {[%clk 0:00:10.4]} 78. Rh8 {[%clk 0:00:08.7]} 78... a3+ {[%clk 0:00:10.7]}
79. Ka2 {[%clk 0:00:08.5]} 79... Rd2+ {[%clk 0:00:10.7]} 80. Ka1 {[%clk
0:00:09.4]} 80... Kb3 {[%clk 0:00:10.5]} 81. Rh3+ {[%clk 0:00:10]} 81... Ka4
{[%clk 0:00:11]} 82. Rh8 {[%clk 0:00:10.4]} 82... b3 {[%clk 0:00:10.7]} 83. Ra8+
{[%clk 0:00:11]} 83... Kb4 {[%clk 0:00:11.4]} 84. Rb8+ {[%clk 0:00:11.7]} 84...
Kc3 {[%clk 0:00:11.5]} 0-1

[Event "*** Titled Tuesday Blitz"]
[Site "Chess.com"]
[Date "2020.04.07"]
[Round "2"]
[White "Lony7"]
[Black "econpower"]
[Result "0-1"]
[WhiteElo "2451"]
[BlackElo "2734"]
[TimeControl "180+1"]
[EndTime "13:21:00 PDT"]
[Termination "econpower won on time"]

1. e4 {[%clk 0:03:00.9]} 1... c5 {[%clk 0:02:59.3]} 2. Nf3 {[%clk 0:03:01.1]}
2... d6 {[%clk 0:02:59.4]} 3. Bb5+ {[%clk 0:03:01.2]} 3... Nd7 {[%clk
0:02:59.5]} 4. Ba4 {[%clk 0:03:01.4]} 4... a6 {[%clk 0:02:57.1]} 5. c4 {[%clk
0:03:01]} 5... Nf6 {[%clk 0:02:55.2]} 6. Nc3 {[%clk 0:03:01.1]} 6... e6 {[%clk
0:02:41.9]} 7. O-O {[%clk 0:03:00.5]} 7... Be7 {[%clk 0:02:42.1]} 8. d4 {[%clk
0:02:30.9]} 8... cxd4 {[%clk 0:02:41.2]} 9. Qxd4 {[%clk 0:02:30.6]} 9... O-O
{[%clk 0:02:41.8]} 10. Bxd7 {[%clk 0:02:06.7]} 10... Bxd7 {[%clk 0:02:38.6]} 11.
Bg5 {[%clk 0:01:49.2]} 11... Bc6 {[%clk 0:02:36.9]} 12. Rfd1 {[%clk 0:01:44.5]}
12... Qc7 {[%clk 0:02:36.5]} 13. Rac1 {[%clk 0:01:30.9]} 13... Qb8 {[%clk
0:01:54.7]} 14. a4 {[%clk 0:01:22.4]} 14... Rd8 {[%clk 0:01:47.7]} 15. Qd3
{[%clk 0:01:21.6]} 15... b6 {[%clk 0:01:31.8]} 16. Nd4 {[%clk 0:01:01.5]} 16...
Bb7 {[%clk 0:01:28.4]} 17. f3 {[%clk 0:00:42.6]} 17... Qc7 {[%clk 0:01:27.7]}
18. Be3 {[%clk 0:00:40.5]} 18... Rac8 {[%clk 0:01:27.4]} 19. Qd2 {[%clk
0:00:39.9]} 19... Qb8 {[%clk 0:01:22.9]} 20. b3 {[%clk 0:00:38.9]} 20... Nd7
{[%clk 0:01:22.9]} 21. Bg5 {[%clk 0:00:29.4]} 21... Nf6 {[%clk 0:00:51.8]} 22.
Be3 {[%clk 0:00:29]} 22... Nd7 {[%clk 0:00:47.1]} 23. Nde2 {[%clk 0:00:28]}
23... Nc5 {[%clk 0:00:45]} 24. Rb1 {[%clk 0:00:27.9]} 24... Bf8 {[%clk 0:00:38]}
25. h3 {[%clk 0:00:27.8]} 25... Bc6 {[%clk 0:00:35.2]} 26. Nd4 {[%clk
0:00:24.3]} 26... Be8 {[%clk 0:00:35.1]} 27. Kh1 {[%clk 0:00:23.9]} 27... g6
{[%clk 0:00:34.7]} 28. Bh6 {[%clk 0:00:19.1]} 28... Be7 {[%clk 0:00:30.7]} 29.
Bg5 {[%clk 0:00:18.8]} 29... Qb7 {[%clk 0:00:31.3]} 30. Bxe7 {[%clk 0:00:18.5]}
30... Qxe7 {[%clk 0:00:32.2]} 31. Qe3 {[%clk 0:00:18.7]} 31... h5 {[%clk
0:00:30.7]} 32. Nde2 {[%clk 0:00:18.7]} 32... h4 {[%clk 0:00:30.4]} 33. Nf4
{[%clk 0:00:16]} 33... Qg5 {[%clk 0:00:28.3]} 34. Nfd5 {[%clk 0:00:15.3]} 34...
Qxe3 {[%clk 0:00:27.8]} 35. Nxe3 {[%clk 0:00:15.3]} 35... Kf8 {[%clk 0:00:28.7]}
36. Kg1 {[%clk 0:00:14.9]} 36... Ke7 {[%clk 0:00:29.1]} 37. Kf2 {[%clk
0:00:15.3]} 37... g5 {[%clk 0:00:29.7]} 38. Ke2 {[%clk 0:00:15.3]} 38... Bc6
{[%clk 0:00:28.7]} 39. Nc2 {[%clk 0:00:15.3]} 39... Bb7 {[%clk 0:00:28.2]} 40.
Nb4 {[%clk 0:00:15]} 40... Kf6 {[%clk 0:00:27.8]} 41. Nd3 {[%clk 0:00:15.2]}
41... Nxd3 {[%clk 0:00:26.8]} 42. Rxd3 {[%clk 0:00:15.1]} 42... Ke5 {[%clk
0:00:27.4]} 43. Ke3 {[%clk 0:00:15.5]} 43... Rd7 {[%clk 0:00:24.2]} 44. Rbd1
{[%clk 0:00:15.6]} 44... Rcd8 {[%clk 0:00:24.6]} 45. R3d2 {[%clk 0:00:13.4]}
45... f5 {[%clk 0:00:23.8]} 46. exf5 {[%clk 0:00:13.3]} 46... Kxf5 {[%clk
0:00:24.7]} 47. Rd4 {[%clk 0:00:12.9]} 47... Ke5 {[%clk 0:00:20.1]} 48. Ne4
{[%clk 0:00:13]} 48... Bxe4 {[%clk 0:00:19.7]} 49. Rxe4+ {[%clk 0:00:13.2]}
49... Kf6 {[%clk 0:00:20.1]} 50. Rdd4 {[%clk 0:00:11.7]} 50... d5 {[%clk
0:00:20]} 51. cxd5 {[%clk 0:00:11.9]} 51... Rxd5 {[%clk 0:00:20.9]} 52. Rxd5
{[%clk 0:00:11.9]} 52... Rxd5 {[%clk 0:00:19.2]} 53. Rb4 {[%clk 0:00:12.1]}
53... Rd6 {[%clk 0:00:18.3]} 54. f4 {[%clk 0:00:11.3]} 54... Rc6 {[%clk
0:00:15.1]} 55. Kf3 {[%clk 0:00:10.8]} 55... Kf5 {[%clk 0:00:13.5]} 56. fxg5
{[%clk 0:00:10.7]} 56... Kxg5 {[%clk 0:00:14.4]} 57. Rg4+ {[%clk 0:00:09.5]}
57... Kh5 {[%clk 0:00:14.9]} 58. Re4 {[%clk 0:00:09.7]} 58... Kg5 {[%clk
0:00:13.1]} 59. Re5+ {[%clk 0:00:09.5]} 59... Kf6 {[%clk 0:00:13.5]} 60. Re3
{[%clk 0:00:08.8]} 60... Kf5 {[%clk 0:00:13.4]} 61. g4+ {[%clk 0:00:05.7]} 61...
hxg3 {[%clk 0:00:13.4]} 62. Kxg3 {[%clk 0:00:06.1]} 62... e5 {[%clk 0:00:14.3]}
63. h4 {[%clk 0:00:06.6]} 63... e4 {[%clk 0:00:14.5]} 64. h5 {[%clk 0:00:05.2]}
64... Rc8 {[%clk 0:00:15]} 65. Kh4 {[%clk 0:00:04.8]} 65... Rg8 {[%clk
0:00:15.9]} 66. Rg3 {[%clk 0:00:03.9]} 66... Rh8 {[%clk 0:00:14.7]} 67. Rg7
{[%clk 0:00:02.7]} 67... e3 {[%clk 0:00:14.6]} 68. Re7 {[%clk 0:00:02.2]} 68...
Kf4 {[%clk 0:00:14.9]} 69. Re6 {[%clk 0:00:01]} 69... b5 {[%clk 0:00:14.9]} 0-1

[Event "*** Titled Tuesday Blitz"]
[Site "Chess.com"]
[Date "2020.04.07"]
[Round "2"]
[White "Lysiak_Poltorak"]
[Black "LikeWater"]
[Result "0-1"]
[WhiteElo "2343"]
[BlackElo "2692"]
[TimeControl "180+1"]
[EndTime "13:21:00 PDT"]
[Termination "LikeWater won by checkmate"]

1. d4 {[%clk 0:03:00.9]} 1... Nf6 {[%clk 0:02:59.9]} 2. c4 {[%clk 0:03:00.9]}
2... c5 {[%clk 0:03:00.3]} 3. d5 {[%clk 0:02:59.5]} 3... b5 {[%clk 0:02:56.5]}
4. cxb5 {[%clk 0:02:56.3]} 4... a6 {[%clk 0:02:56.6]} 5. bxa6 {[%clk 0:02:56]}
5... g6 {[%clk 0:02:56.5]} 6. Nc3 {[%clk 0:02:55.3]} 6... Bg7 {[%clk 0:02:56.8]}
7. Nf3 {[%clk 0:02:55.4]} 7... O-O {[%clk 0:02:56.1]} 8. g3 {[%clk 0:02:54.5]}
8... d6 {[%clk 0:02:56.2]} 9. Bg2 {[%clk 0:02:54.3]} 9... Nbd7 {[%clk
0:02:56.6]} 10. O-O {[%clk 0:02:54.2]} 10... Nb6 {[%clk 0:02:57.3]} 11. Rb1
{[%clk 0:02:51.5]} 11... Bf5 {[%clk 0:02:57.4]} 12. Ra1 {[%clk 0:02:47]} 12...
Ne4 {[%clk 0:02:57.8]} 13. Bd2 {[%clk 0:02:34.2]} 13... Nc4 {[%clk 0:02:28.1]}
14. Qc1 {[%clk 0:02:11.9]} 14... Ncxd2 {[%clk 0:01:34.5]} 15. Nxd2 {[%clk
0:02:10]} 15... Nxc3 {[%clk 0:01:34.1]} 16. bxc3 {[%clk 0:02:08.8]} 16... Qa5
{[%clk 0:01:33.8]} 17. e4 {[%clk 0:01:42]} 17... Bd7 {[%clk 0:01:29.2]} 18. Nc4
{[%clk 0:01:40.9]} 18... Qxa6 {[%clk 0:01:23.7]} 19. Ne3 {[%clk 0:01:39.6]}
19... Qd3 {[%clk 0:01:12.1]} 20. Nd1 {[%clk 0:01:36.5]} 20... Ra5 {[%clk
0:01:02.4]} 21. Re1 {[%clk 0:01:32.6]} 21... Qa6 {[%clk 0:00:49.1]} 22. Bf1
{[%clk 0:01:29.3]} 22... Qa7 {[%clk 0:00:47.2]} 23. a3 {[%clk 0:01:14.8]} 23...
Ra8 {[%clk 0:00:45.1]} 24. Ra2 {[%clk 0:01:08.4]} 24... Rxa3 {[%clk 0:00:41.6]}
25. Rxa3 {[%clk 0:01:08.1]} 25... Qxa3 {[%clk 0:00:42.5]} 26. Qxa3 {[%clk
0:01:08]} 26... Rxa3 {[%clk 0:00:43.4]} 27. c4 {[%clk 0:01:08]} 27... Ra1 {[%clk
0:00:28.5]} 28. Be2 {[%clk 0:01:00.8]} 28... Ba4 {[%clk 0:00:26]} 29. Rf1 {[%clk
0:00:57.7]} 29... Ra2 {[%clk 0:00:25.5]} 30. Bf3 {[%clk 0:00:52]} 30... Bd4
{[%clk 0:00:22.2]} 31. Ne3 {[%clk 0:00:28.3]} 31... Bb3 {[%clk 0:00:17.5]} 32.
Rc1 {[%clk 0:00:22.9]} 32... Bxe3 {[%clk 0:00:11.6]} 33. fxe3 {[%clk 0:00:23.8]}
33... Kg7 {[%clk 0:00:10.2]} 34. Rc3 {[%clk 0:00:23.4]} 34... Rb2 {[%clk
0:00:10.4]} 35. Bg2 {[%clk 0:00:19.2]} 35... Kf6 {[%clk 0:00:09]} 36. Bf1 {[%clk
0:00:15.3]} 36... Ke5 {[%clk 0:00:09]} 37. Bd3 {[%clk 0:00:14.8]} 37... h5
{[%clk 0:00:08]} 38. Kh1 {[%clk 0:00:14.6]} 38... g5 {[%clk 0:00:08.1]} 39. Kg1
{[%clk 0:00:14.6]} 39... h4 {[%clk 0:00:08.5]} 40. gxh4 {[%clk 0:00:11.7]} 40...
gxh4 {[%clk 0:00:09.4]} 41. h3 {[%clk 0:00:12.2]} 41... Kf6 {[%clk 0:00:08.9]}
42. Kh1 {[%clk 0:00:10.8]} 42... Kg7 {[%clk 0:00:09.2]} 43. Bf1 {[%clk
0:00:10.4]} 43... Kf6 {[%clk 0:00:06.5]} 44. Bd3 {[%clk 0:00:10.3]} 44... Ke5
{[%clk 0:00:06.5]} 45. Kg1 {[%clk 0:00:10.7]} 45... Ba2 {[%clk 0:00:06.8]} 46.
Ra3 {[%clk 0:00:06.4]} 46... Rd2 {[%clk 0:00:07]} 47. Kh1 {[%clk 0:00:04.7]}
47... Kf6 {[%clk 0:00:04.5]} 48. Kg1 {[%clk 0:00:04.8]} 48... Kg5 {[%clk
0:00:04.6]} 49. Kh1 {[%clk 0:00:05]} 49... Rb2 {[%clk 0:00:04.9]} 50. Kg1 {[%clk
0:00:04.7]} 50... Kf6 {[%clk 0:00:05.2]} 51. Bf1 {[%clk 0:00:05]} 51... Bb1
{[%clk 0:00:04.8]} 52. Bg2 {[%clk 0:00:03.6]} 52... Re2 {[%clk 0:00:03.2]} 53.
Bf1 {[%clk 0:00:03.1]} 53... Rd2 {[%clk 0:00:03.2]} 54. Bg2 {[%clk 0:00:03.5]}
54... Ke5 {[%clk 0:00:03.6]} 55. Ra7 {[%clk 0:00:02.1]} 55... Rd1+ {[%clk
0:00:03.9]} 56. Kh2 {[%clk 0:00:01.3]} 56... Kf6 {[%clk 0:00:04.8]} 57. Ra8
{[%clk 0:00:01.4]} 57... Rd2 {[%clk 0:00:05]} 58. Ra3 {[%clk 0:00:01.9]} 58...
Bxe4 {[%clk 0:00:04.6]} 59. Kg1 {[%clk 0:00:02.8]} 59... Rxg2+ {[%clk
0:00:04.7]} 60. Kf1 {[%clk 0:00:03.7]} 60... Ke5 {[%clk 0:00:05.6]} 61. Ra8
{[%clk 0:00:04.1]} 61... Kf6 {[%clk 0:00:05.5]} 62. Re8 {[%clk 0:00:05]} 62...
Rb2 {[%clk 0:00:05.8]} 63. Rd8 {[%clk 0:00:05.8]} 63... Bd3+ {[%clk 0:00:06]}
64. Ke1 {[%clk 0:00:05.7]} 64... Bxc4 {[%clk 0:00:06.9]} 65. Rh8 {[%clk
0:00:06.3]} 65... Bxd5 {[%clk 0:00:06.9]} 66. Rxh4 {[%clk 0:00:06.1]} 66... c4
{[%clk 0:00:07.6]} 67. Rf4+ {[%clk 0:00:07]} 67... Ke5 {[%clk 0:00:07.4]} 68. h4
{[%clk 0:00:07.9]} 68... c3 {[%clk 0:00:07.8]} 69. h5 {[%clk 0:00:08.3]} 69...
Rh2 {[%clk 0:00:08.1]} 70. Kd1 {[%clk 0:00:08.5]} 70... Bb3+ {[%clk 0:00:07.9]}
71. Kc1 {[%clk 0:00:08.6]} 71... Rh1+ {[%clk 0:00:08.2]} 72. Rf1 {[%clk
0:00:07.9]} 72... Rxf1# {[%clk 0:00:08.4]} 0-1